bitfinex/quotes_BTCUSD_20251012
["timestamp","ask_amount","ask_price","bid_price","bid_amount"]
[1760235470731,0.84658474,110650.0,110640.0,0.0523146]
[1760235473917,0.84658474,110650.0,110640.0,0.03112396]
[1760235474720,0.19900521,110660.0,110650.0,0.0301519]
[1760235475011,0.85515646,110660.0,110650.0,0.0301519]
[1760235475641,0.62650938,110660.0,110650.0,0.0301519]
[1760235475845,0.26740183,110660.0,110650.0,0.0301519]
[1760235475992,0.62650938,110660.0,110650.0,0.0301519]
[1760235477819,0.26740183,110660.0,110650.0,0.0301519]
[1760235477995,0.62650938,110660.0,110650.0,0.0301519]
[1760235480376,0.18075011,110650.0,110640.0,0.03112396]
[1760235480575,0.55847766,110650.0,110640.0,0.03112396]
[1760235480776,0.25931011,110650.0,110640.0,0.03112396]
[1760235481218,0.61841766,110650.0,110640.0,0.03112396]
[1760235484217,0.61841766,110650.0,110640.0,0.00097206]
[1760235484218,0.97752521,110650.0,110640.0,0.00097206]
[1760235484417,5.04223478,110650.0,110640.0,0.00097206]
[1760235485478,5.05919926,110650.0,110640.0,0.00097206]
[1760235489333,5.1479186,110650.0,110640.0,0.00097206]
[1760235489746,5.05919926,110650.0,110640.0,0.00097206]
[1760235491438,4.81507895,110650.0,110640.0,0.00097206]
[1760235491604,4.99920926,110650.0,110640.0,0.00097206]
[1760235492218,0.94298326,110650.0,110640.0,0.00097206]
[1760235492557,4.99072569,110650.0,110640.0,0.00097206]
[1760235492742,4.99919562,110650.0,110640.0,0.00097206]
[1760235493455,0.94296962,110650.0,110640.0,0.00097206]
[1760235493655,5.01080562,110650.0,110640.0,0.00097206]
[1760235494066,5.0945689,110650.0,110640.0,0.00097206]
[1760235495545,1.0383429,110650.0,110640.0,0.00097206]
[1760235495751,5.0945689,110650.0,110640.0,0.00097206]
[1760235495950,5.18328824,110650.0,110640.0,0.00097206]
[1760235496920,1.12706224,110650.0,110640.0,0.00097206]
[1760235497118,5.18328824,110650.0,110640.0,0.00097206]
[1760235497541,5.0945689,110650.0,110640.0,0.00097206]
[1760235498075,1.0383429,110650.0,110640.0,0.00097206]
[1760235498238,5.0945689,110650.0,110640.0,0.00097206]
[1760235498559,1.0763829,110650.0,110640.0,0.00097206]
[1760235498778,5.1326089,110650.0,110640.0,0.00097206]
[1760235499307,1.0763829,110650.0,110640.0,0.00097206]
[1760235499512,5.1326089,110650.0,110640.0,0.00097206]
[1760235499911,1.0763829,110650.0,110640.0,0.00097206]
[1760235500114,5.1326089,110650.0,110640.0,0.00097206]
[1760235500759,1.0763829,110650.0,110640.0,0.00097206]
[1760235500908,5.1326089,110650.0,110640.0,0.00097206]
[1760235501451,5.1521092,110650.0,110640.0,0.00097206]
[1760235502521,5.24082854,110650.0,110640.0,0.00097206]
[1760235503046,5.1521092,110650.0,110640.0,0.00097206]
[1760235503452,5.1326089,110650.0,110610.0,0.07162362]
[1760235503665,0.55151668,110620.0,110610.0,0.07212596]
[1760235504118,0.58169668,110620.0,110610.0,0.00050234]
[1760235504468,5.07327957,110620.0,110610.0,0.00050234]
[1760235504669,5.01395897,110620.0,110610.0,0.00050234]
[1760235505021,4.65485142,110620.0,110610.0,0.00050234]
[1760235505228,5.01395897,110620.0,110610.0,0.00050234]
[1760235505646,4.65485142,110620.0,110610.0,0.00050234]
[1760235506853,4.65585142,110620.0,110610.0,0.00050234]
[1760235507483,5.02342032,110620.0,110610.0,1e-08]
[1760235507654,5.05709087,110620.0,110610.0,1e-08]
[1760235507859,5.12419063,110620.0,110610.0,1e-08]
[1760235508040,5.24858776,110620.0,110610.0,1e-08]
[1760235508241,5.22419062,110620.0,110610.0,1e-08]
[1760235508466,5.31290996,110620.0,110610.0,1e-08]
[1760235509338,5.22419062,110620.0,110610.0,1e-08]
[1760235509503,4.50597552,110620.0,110610.0,1e-08]
[1760235510060,4.37701845,110620.0,110610.0,1e-08]
[1760235510272,4.37801845,110620.0,110610.0,1e-08]
[1760235510897,4.71801845,110620.0,110610.0,1e-08]
[1760235511757,4.71700094,110620.0,110610.0,1e-08]
[1760235511979,4.76367966,110620.0,110610.0,1e-08]
[1760235512187,4.71800094,110620.0,110590.0,1e-08]
[1760235512399,0.52084817,110590.0,110580.0,0.2]
[1760235512595,0.55321817,110590.0,110580.0,0.2]
[1760235513005,0.91232572,110590.0,110580.0,0.2]
[1760235513419,0.92923165,110590.0,110580.0,0.2]
[1760235513624,1.02987795,110590.0,110580.0,0.2]
[1760235514052,1.01742795,110590.0,110580.0,0.24562]
[1760235514307,1.00052202,110590.0,110580.0,0.24495]
[1760235514489,1.00052202,110590.0,110580.0,0.21933]
[1760235514698,1.01297202,110590.0,110580.0,0.2]
[1760235516296,1.0298735,110590.0,110580.0,0.2]
[1760235517299,1.0174235,110590.0,110580.0,0.2]
[1760235517886,1.0174235,110590.0,110580.0,0.20177599]
[1760235518206,1.0298735,110590.0,110580.0,0.20177599]
[1760235518410,0.53774965,110590.0,110580.0,0.22739599]
[1760235518619,1.0174235,110590.0,110580.0,0.24672599]
[1760235519445,1.0174235,110590.0,110580.0,0.22110599]
[1760235519655,1.0174235,110590.0,110580.0,0.20177599]
[1760235519860,1.0174235,110590.0,110580.0,0.22739599]
[1760235520078,1.0298735,110590.0,110580.0,0.20177599]
[1760235528003,1.0174235,110590.0,110580.0,0.20177599]
[1760235528224,1.0296835,110590.0,110580.0,0.20177599]
[1760235528412,1.0174235,110590.0,110580.0,0.20177599]
[1760235528813,1.0296835,110590.0,110580.0,0.20177599]
[1760235531258,1.0174235,110590.0,110580.0,0.20177599]
[1760235531676,1.0296835,110590.0,110580.0,0.20177599]
[1760235533966,1.0174235,110590.0,110580.0,0.20177599]
[1760235534125,1.0174235,110590.0,110580.0,0.24477599]
[1760235535638,1.36659281,110590.0,110580.0,0.22039599]
[1760235536071,0.94221123,110590.0,110580.0,0.31089559]
[1760235536552,0.94221123,110590.0,110580.0,0.28315599]
[1760235536750,0.96182123,110590.0,110580.0,0.28315599]
[1760235537199,0.96182123,110590.0,110580.0,0.24477599]
[1760235537587,0.96182123,110590.0,110580.0,0.20177599]
[1760235537588,1.36628281,110590.0,110580.0,0.20177599]
[1760235537787,1.37854281,110590.0,110580.0,0.20177599]
[1760235538195,1.36628281,110590.0,110580.0,0.20177599]
[1760235538393,1.37854281,110590.0,110580.0,0.20177599]
[1760235538692,1.36628281,110590.0,110580.0,0.22615599]
[1760235538906,1.37781281,110590.0,110580.0,0.20177599]
[1760235539934,1.36628281,110590.0,110580.0,0.20177599]
[1760235540356,1.37781281,110590.0,110580.0,0.20177599]
[1760235543952,1.46653215,110590.0,110580.0,0.20177599]
[1760235544153,1.49457376,110590.0,110580.0,0.20177599]
[1760235544356,1.48608634,110590.0,110580.0,0.20177599]
[1760235544581,1.397367,110590.0,110580.0,0.20177599]
[1760235545002,5.86654386,110590.0,110580.0,1e-08]
[1760235545163,5.46208228,110590.0,110580.0,1e-08]
[1760235545371,5.48930549,110590.0,110580.0,1e-08]
[1760235546038,0.19774965,110590.0,110580.0,0.08120001]
[1760235546251,0.60321123,110590.0,110580.0,0.08120001]
[1760235546469,0.62166123,110590.0,110580.0,0.04360001]
[1760235546889,0.62066123,110590.0,110580.0,0.04360001]
[1760235547366,0.19774965,110590.0,110580.0,0.12137691]
[1760235547570,0.18084817,110590.0,110580.0,0.12137691]
[1760235548038,0.18084817,110590.0,110580.0,0.11135191]
[1760235549381,0.18084817,110590.0,110580.0,0.11235191]
[1760235549608,0.64033869,110590.0,110580.0,0.11235191]
[1760235550223,0.18084817,110590.0,110580.0,0.11235191]
[1760235550422,0.64033869,110590.0,110580.0,0.11235191]
[1760235551868,0.18084817,110590.0,110580.0,0.11235191]
[1760235552068,0.64033869,110590.0,110580.0,0.11235191]
[1760235553868,0.64033869,110590.0,110580.0,0.29321644]
[1760235554086,0.64033869,110590.0,110580.0,0.11235191]
[1760235555886,0.64032234,110600.0,110590.0,0.0301519]
[1760235556114,0.64032234,110600.0,110590.0,0.1113519]
[1760235556349,0.64032234,110600.0,110590.0,0.29220007]
[1760235556573,0.68740057,110610.0,110590.0,0.29220007]
[1760235556804,0.64032234,110600.0,110590.0,0.29220007]
[1760235557022,0.65877234,110600.0,110590.0,0.0737519]
[1760235557472,0.65877234,110600.0,110580.0,0.02005]
[1760235557706,0.64033869,110590.0,110580.0,0.0311519]
[1760235558155,0.65878869,110590.0,110580.0,0.0301519]
[1760235558371,0.65878869,110590.0,110580.0,0.0737519]
[1760235558613,0.65878869,110590.0,110580.0,0.1113519]
[1760235558838,0.65878869,110590.0,110580.0,0.0737519]
[1760235559066,0.18086453,110580.0,110570.0,0.01905]
[1760235559285,0.18088088,110570.0,110560.0,0.01905]
[1760235559498,0.18088088,110570.0,110560.0,0.0436]
[1760235559499,0.6588214,110570.0,110560.0,0.0436]
[1760235559752,0.6403714,110570.0,110560.0,0.1113519]
[1760235560174,0.6403714,110570.0,110560.0,0.26209725]
[1760235560388,0.67216067,110570.0,110560.0,0.29239978]
[1760235560605,0.67216067,110570.0,110560.0,0.11150253]
[1760235561648,0.69061067,110570.0,110560.0,0.07390253]
[1760235561851,0.69061067,110570.0,110560.0,0.07490253]
[1760235562246,0.69061067,110570.0,110560.0,0.04935253]
[1760235562512,0.69061067,110570.0,110560.0,0.07390253]
[1760235562706,0.67216067,110570.0,110560.0,0.07490253]
[1760235562990,0.67216067,110570.0,110560.0,0.11250253]
[1760235563190,0.67216067,110570.0,110560.0,0.29339978]
[1760235565082,0.69061067,110570.0,110560.0,0.07490253]
[1760235565871,0.67216067,110570.0,110560.0,0.11250253]
[1760235566120,0.69061067,110570.0,110560.0,0.07490253]
[1760235566290,0.69061067,110570.0,110560.0,0.00115063]
[1760235566291,0.70214067,110570.0,110560.0,0.00115063]
[1760235566515,0.70214067,110570.0,110560.0,0.002335]
[1760235569473,1.05201551,110570.0,110560.0,0.002335]
[1760235573986,1.04048551,110570.0,110560.0,0.026655]
[1760235574193,1.02203551,110570.0,110560.0,0.082865]
[1760235575415,0.03178927,110570.0,110560.0,0.29391415]
[1760235575727,0.35962499,110570.0,110560.0,0.32521094]
[1760235576430,0.18182287,110590.0,110580.0,0.21101643]
[1760235576431,0.00097269,110590.0,110580.0,0.21101643]
[1760235576631,0.54144585,110590.0,110580.0,0.29154643]
[1760235577031,0.36059768,110590.0,110580.0,0.29154643]
[1760235577238,0.54144585,110590.0,110580.0,0.29154643]
[1760235578207,0.54144585,110590.0,110580.0,0.1106819]
[1760235578847,0.36059768,110590.0,110580.0,0.31199202]
[1760235579717,0.54144585,110590.0,110580.0,0.1106819]
[1760235579919,0.54144585,110590.0,110580.0,0.1116819]
[1760235580416,0.57299137,110590.0,110580.0,0.1116819]
[1760235581326,0.59020137,110590.0,110580.0,0.0741319]
[1760235582021,0.59020137,110590.0,110580.0,0.1094519]
[1760235582242,0.57299137,110590.0,110580.0,0.1094519]
[1760235582692,0.21336638,110590.0,110580.0,0.1094519]
[1760235582864,0.57299137,110590.0,110580.0,0.1094519]
[1760235584097,0.57299137,110590.0,110580.0,0.0741319]
[1760235584098,0.59020137,110590.0,110580.0,0.0741319]
[1760235584264,0.57299137,110590.0,110580.0,0.1094519]
[1760235584665,0.60096137,110590.0,110580.0,0.001]
[1760235585438,4.65718737,110590.0,110580.0,0.001]
[1760235586859,4.63198737,110590.0,110580.0,0.001]
[1760235587264,5.00855515,110590.0,110580.0,0.001]
[1760235587466,4.89233424,110590.0,110580.0,0.001]
[1760235587633,0.83610824,110590.0,110580.0,0.001]
[1760235587838,4.89233424,110590.0,110580.0,0.001]
[1760235588032,4.91185145,110590.0,110580.0,0.001]
[1760235588439,4.89233424,110590.0,110580.0,0.001]
[1760235588951,0.83610824,110590.0,110580.0,0.001]
[1760235589156,4.23709053,110580.0,110570.0,0.00059214]
[1760235589357,4.82593643,110580.0,110570.0,0.00059214]
[1760235589564,4.85390643,110580.0,110570.0,0.00059214]
[1760235589986,4.87196643,110580.0,110570.0,0.00059214]
[1760235591593,4.85390643,110580.0,110570.0,0.00059214]
[1760235595327,4.87083802,110580.0,110570.0,0.00059214]
[1760235595559,4.89004305,110580.0,110570.0,0.00059214]
[1760235596708,4.68168889,110580.0,110570.0,0.00059214]
[1760235596907,4.86255342,110580.0,110570.0,0.00059214]
[1760235597120,4.88977663,110580.0,110570.0,0.00059214]
[1760235597860,0.83355063,110580.0,110570.0,0.00059214]
[1760235598105,4.88977663,110580.0,110570.0,0.00059214]
[1760235598316,4.97849597,110580.0,110570.0,0.00059214]
[1760235598514,0.83355063,110580.0,110570.0,0.00059214]
[1760235598714,4.88977663,110580.0,110570.0,0.00059214]
[1760235599335,4.86255342,110580.0,110570.0,0.00059214]
[1760235599466,0.77863583,110580.0,110570.0,0.00059214]
[1760235601161,0.77863583,110580.0,110570.0,0.02515214]
[1760235601403,0.77863583,110580.0,110570.0,0.11655232]
[1760235601404,0.18086453,110580.0,110570.0,0.11655232]
[1760235601615,0.77701228,110590.0,110580.0,0.0291519]
[1760235601826,0.77701228,110590.0,110580.0,0.10787835]
[1760235601827,0.21239369,110590.0,110580.0,0.10787835]
[1760235602030,0.21239369,110590.0,110580.0,0.12623835]
[1760235602870,0.80569959,110590.0,110580.0,0.0709619]
[1760235603353,0.80123959,110590.0,110580.0,0.1081519]
[1760235603558,0.80123959,110590.0,110580.0,0.1370882]
[1760235604191,0.80123959,110590.0,110580.0,0.1091519]
[1760235604823,0.80569959,110590.0,110580.0,0.0301519]
[1760235605036,0.80123959,110590.0,110580.0,0.1091519]
[1760235605708,0.21239369,110590.0,110580.0,0.1091519]
[1760235605931,0.80123959,110590.0,110580.0,0.1091519]
[1760235606154,0.80123959,110590.0,110580.0,0.14080714]
[1760235607191,0.62039142,110590.0,110580.0,0.33975812]
[1760235607393,0.62039142,110590.0,110580.0,0.32167167]
[1760235607604,0.21239369,110590.0,110580.0,0.32167167]
[1760235608428,0.21239369,110590.0,110580.0,0.29001643]
[1760235609107,0.21239369,110590.0,110580.0,0.1091519]
[1760235609335,0.21239369,110590.0,110580.0,0.29001643]
[1760235609513,0.80123959,110590.0,110580.0,0.29001643]
[1760235609724,0.62039142,110590.0,110580.0,0.29001643]
[1760235609925,0.03154552,110590.0,110580.0,0.29001643]
[1760235610103,0.21239369,110590.0,110580.0,0.29001643]
[1760235610307,0.18084817,110590.0,110580.0,0.29001643]
[1760235610504,0.76969407,110590.0,110580.0,0.29001643]
[1760235610843,0.76967772,110600.0,110590.0,0.21100007]
[1760235610986,0.18083182,110600.0,110590.0,0.1091519]
[1760235613541,0.76967772,110600.0,110590.0,0.1091519]
[1760235614123,0.77413772,110600.0,110590.0,0.0719619]
[1760235614327,0.79691707,110600.0,110590.0,0.1091519]
[1760235615775,0.80137707,110600.0,110590.0,0.0719619]
[1760235615981,0.80137707,110600.0,110590.0,0.0301519]
[1760235615982,0.80416707,110600.0,110590.0,0.0301519]
[1760235616229,0.18084817,110590.0,110580.0,0.01836]
[1760235616371,0.18084817,110590.0,110580.0,0.0301519]
[1760235616372,0.76969407,110590.0,110580.0,0.0301519]
[1760235616585,0.76969407,110590.0,110580.0,0.12723835]
[1760235617415,0.77415407,110590.0,110580.0,0.09104835]
[1760235618185,0.76969407,110590.0,110580.0,0.12823835]
[1760235619063,0.76969407,110590.0,110580.0,0.16095627]
[1760235619271,0.76969407,110590.0,110580.0,0.12823835]
[1760235619486,0.77415407,110590.0,110580.0,0.12823835]
[1760235619861,0.77415407,110590.0,110580.0,0.09104835]
[1760235621042,0.77415407,110590.0,110580.0,0.0311519]
[1760235621540,0.77415407,110590.0,110580.0,0.0546019]
[1760235621731,0.77415407,110590.0,110580.0,0.0311519]
[1760235621962,0.77415407,110590.0,110580.0,0.0301519]
[1760235622175,0.77694407,110590.0,110580.0,0.0301519]
[1760235624592,0.18086453,110580.0,110570.0,0.0301519]
[1760235624788,0.76971043,110580.0,110570.0,0.0301519]
[1760235624975,0.77417043,110580.0,110570.0,0.05516681]
[1760235626407,0.5888459,110580.0,110570.0,0.33883171]
[1760235626635,0.18989057,110590.0,110580.0,0.0301519]
[1760235626848,0.02783127,110600.0,110590.0,0.21100007]
[1760235627118,0.02783127,110600.0,110590.0,0.29000007]
[1760235628214,0.61667717,110600.0,110590.0,0.29000007]
[1760235628364,0.61667717,110600.0,110590.0,0.31259651]
[1760235629096,0.02783127,110600.0,110590.0,0.31259651]
[1760235629854,0.02783127,110600.0,110590.0,0.31359651]
[1760235631327,0.00059192,110600.0,110590.0,0.31359651]
[1760235631531,0.2756962,110640.0,110620.0,0.21095103]
[1760235631532,0.85036316,110640.0,110620.0,0.21095103]
[1760235631778,0.85036316,110640.0,110630.0,0.28993468]
[1760235631779,0.07162362,110640.0,110630.0,0.28993468]
[1760235631993,0.09824495,110640.0,110630.0,0.28993468]
[1760235632201,0.02662133,110640.0,110630.0,0.28993468]
[1760235632639,0.76959844,110650.0,110630.0,0.28993468]
[1760235632840,5.016e-05,110640.0,110630.0,0.25274468]
[1760235633048,0.1808166,110640.0,110630.0,0.27534112]
[1760235633257,0.1818166,110640.0,110630.0,0.09455834]
[1760235633466,0.7706625,110640.0,110630.0,0.12922834]
[1760235633684,0.7696625,110640.0,110630.0,0.12922834]
[1760235634096,0.7696625,110640.0,110630.0,0.13022834]
[1760235634985,0.7696625,110640.0,110630.0,0.31101112]
[1760235634986,0.02750472,110640.0,110630.0,0.31101112]
[1760235635344,0.20827116,110640.0,110630.0,0.31101112]
[1760235635551,5.016e-05,110640.0,110630.0,0.31101112]
[1760235637583,0.0024169,110640.0,110630.0,0.31101112]
[1760235642044,0.6683247,110640.0,110630.0,0.13022834]
[1760235642238,0.64211335,110640.0,110630.0,0.31101112]
[1760235642446,0.64607335,110640.0,110630.0,0.04281]
[1760235642645,0.64607335,110640.0,110630.0,0.001]
[1760235642849,1.10748336,110640.0,110630.0,0.001]
[1760235643050,1.12432326,110640.0,110630.0,0.001]
[1760235643257,0.66539325,110640.0,110630.0,0.001]
[1760235643485,0.18078278,110630.0,110620.0,0.01836]
[1760235643698,0.63971279,110630.0,110620.0,0.01836]
[1760235643901,0.64367279,110630.0,110620.0,0.0301519]
[1760235644115,0.64367279,110630.0,110610.0,0.01836]
[1760235644116,0.18079913,110620.0,110610.0,0.01836]
[1760235644321,0.63972914,110620.0,110610.0,0.01836]
[1760235644521,0.63972914,110620.0,110610.0,0.0727819]
[1760235644723,0.63972914,110620.0,110610.0,0.28959737]
[1760235644934,0.18078278,110630.0,110620.0,0.0301519]
[1760235645137,0.63971279,110630.0,110620.0,0.0846519]
[1760235645344,0.63971279,110630.0,110620.0,0.0486519]
[1760235645345,0.64367279,110630.0,110620.0,0.0486519]
[1760235645761,0.18079913,110620.0,110610.0,0.01836]
[1760235645975,0.63972914,110620.0,110610.0,0.0485119]
[1760235646181,0.64368914,110620.0,110610.0,0.0727819]
[1760235646393,0.64368914,110620.0,110610.0,0.0301519]
[1760235646595,0.64368914,110620.0,110610.0,0.07782009]
[1760235646804,0.64368914,110620.0,110610.0,0.05355009]
[1760235647066,0.64368914,110620.0,110610.0,0.03505009]
[1760235647297,0.64368914,110620.0,110610.0,0.05932009]
[1760235648078,0.64368914,110620.0,110610.0,0.0301519]
[1760235648431,0.18083182,110600.0,110590.0,0.23632079]
[1760235648647,0.45893001,110610.0,110600.0,0.22948372]
[1760235648854,0.64370548,110610.0,110600.0,0.0729219]
[1760235649061,0.64370548,110610.0,110600.0,0.10115041]
[1760235649237,0.64429733,110610.0,110600.0,0.0729219]
[1760235649439,0.64429733,110610.0,110600.0,0.0544219]
[1760235649692,0.64479895,110610.0,110600.0,0.0544219]
[1760235649915,0.64479895,110610.0,110600.0,0.0311519]
[1760235650354,0.64479895,110610.0,110600.0,0.0554219]
[1760235650556,0.64479895,110610.0,110600.0,0.0311519]
[1760235651069,0.64479895,110610.0,110600.0,0.0301519]
[1760235651737,0.64479895,110610.0,110600.0,0.0544219]
[1760235652770,0.64479895,110610.0,110600.0,0.0729219]
[1760235653242,0.64083895,110610.0,110600.0,0.10384604]
[1760235653468,0.64479895,110610.0,110600.0,0.10384604]
[1760235654495,0.64479895,110610.0,110600.0,0.0729219]
[1760235655520,0.64479895,110610.0,110600.0,0.0301519]
[1760235657786,0.18083182,110600.0,110590.0,0.05547262]
[1760235658008,0.18083182,110600.0,110590.0,0.00097262]
[1760235658009,0.63976183,110600.0,110590.0,0.00097262]
[1760235658224,0.64620183,110600.0,110590.0,0.00097262]
[1760235658423,0.64620183,110600.0,110590.0,0.03112452]
[1760235658639,0.64620183,110600.0,110590.0,0.00097262]
[1760235659050,0.64620183,110600.0,110590.0,0.00197262]
[1760235659910,0.66308547,110600.0,110590.0,0.00197262]
[1760235660327,0.66308547,110600.0,110590.0,0.00097262]
[1760235660328,4.71931147,110600.0,110590.0,0.00097262]
[1760235660538,4.26038146,110600.0,110590.0,0.00097262]
[1760235660793,4.71931147,110600.0,110590.0,0.00097262]
[1760235661226,0.18089725,110560.0,110550.0,0.0545]
[1760235661447,0.63982726,110560.0,110550.0,0.24907564]
[1760235661654,0.63982726,110560.0,110550.0,0.28507564]
[1760235661655,0.45893001,110560.0,110550.0,0.28507564]
[1760235662081,0.45893001,110560.0,110550.0,0.31522754]
[1760235662306,0.63982726,110560.0,110550.0,0.31522754]
[1760235662504,0.63982726,110560.0,110550.0,0.31537817]
[1760235662712,0.64258726,110560.0,110550.0,0.07307253]
[1760235663162,0.64258726,110560.0,110550.0,0.10828253]
[1760235663163,0.63982726,110560.0,110550.0,0.10828253]
[1760235663579,0.64258726,110560.0,110550.0,0.07307253]
[1760235663785,0.63982726,110560.0,110550.0,0.10828253]
[1760235663997,0.63982726,110560.0,110550.0,0.07407253]
[1760235664196,0.64258726,110560.0,110550.0,0.07407253]
[1760235664810,0.64431726,110560.0,110550.0,0.03130253]
[1760235665040,0.64258726,110560.0,110550.0,0.03130253]
[1760235665246,0.64431726,110560.0,110550.0,0.00115063]
[1760235665458,4.70054326,110560.0,110550.0,0.00115063]
[1760235665923,4.7892626,110560.0,110550.0,0.00115063]
[1760235666133,4.71839156,110560.0,110550.0,0.00115063]
[1760235666340,4.70154326,110560.0,110550.0,0.00115063]
[1760235666758,4.70154326,110560.0,110550.0,0.00251947]
[1760235667171,4.71837858,110560.0,110550.0,0.00251947]
[1760235667393,4.80709792,110560.0,110550.0,0.00251947]
[1760235668018,4.71837858,110560.0,110550.0,0.00251947]
[1760235668256,0.64358726,110560.0,110550.0,0.00251947]
[1760235668749,0.64531726,110560.0,110550.0,0.00251947]
[1760235669167,0.66215107,110560.0,110550.0,0.00251947]
[1760235669628,0.18465725,110560.0,110550.0,0.04551947]
[1760235669867,0.64358726,110560.0,110550.0,0.04551947]
[1760235670332,0.00376,110560.0,110550.0,0.05542542]
[1760235670561,0.64082726,110560.0,110550.0,0.12078732]
[1760235670787,0.64082726,110560.0,110550.0,0.30170093]
[1760235671030,0.45993001,110560.0,110550.0,0.30170093]
[1760235671253,0.001,110560.0,110550.0,0.30170093]
[1760235671937,0.18088088,110570.0,110560.0,0.21104547]
[1760235672168,0.64257089,110570.0,110560.0,0.0731519]
[1760235672646,0.64257089,110570.0,110550.0,0.04863253]
[1760235672647,0.18089725,110560.0,110550.0,0.04863253]
[1760235672861,0.63982726,110560.0,110550.0,0.04863253]
[1760235673083,0.64258726,110560.0,110550.0,0.04863253]
[1760235673288,0.64258726,110560.0,110550.0,0.07330253]
[1760235673502,0.63982726,110560.0,110550.0,0.25421614]
[1760235673724,0.63982726,110560.0,110550.0,0.25521614]
[1760235674153,0.64258726,110560.0,110550.0,0.07330253]
[1760235675025,0.64358726,110560.0,110550.0,0.07330253]
[1760235675239,0.64358726,110560.0,110550.0,0.28589668]
[1760235675692,0.64358726,110560.0,110550.0,0.25421614]
[1760235675897,0.64358726,110560.0,110550.0,0.07330253]
[1760235676365,0.46269001,110560.0,110550.0,0.25421614]
[1760235676602,0.001,110560.0,110550.0,0.10851253]
[1760235676826,0.64358726,110560.0,110550.0,0.07330253]
[1760235677044,0.45993001,110560.0,110550.0,0.28942614]
[1760235677654,0.45893001,110560.0,110550.0,0.29042614]
[1760235678075,0.64258726,110560.0,110550.0,0.00351947]
[1760235678433,0.65946595,110560.0,110550.0,0.00351947]
[1760235678711,0.66119595,110560.0,110550.0,0.00351947]
[1760235678927,0.65946595,110560.0,110550.0,0.00351947]
[1760235679374,0.66119595,110560.0,110550.0,0.00351947]
[1760235679587,0.66219595,110560.0,110550.0,0.00351947]
[1760235680227,0.66219595,110560.0,110550.0,0.00251947]
[1760235682169,4.71842195,110560.0,110550.0,0.00251947]
[1760235684049,0.66046595,110560.0,110550.0,0.00251947]
[1760235685564,0.20153594,110560.0,110550.0,0.00251947]
[1760235685779,0.66046595,110560.0,110550.0,0.02718947]
[1760235685985,0.66046595,110560.0,110550.0,0.04551947]
[1760235686197,0.19877594,110560.0,110550.0,0.10872832]
[1760235686427,0.65770595,110560.0,110550.0,0.10872832]
[1760235686850,0.65770595,110560.0,110550.0,0.04551947]
[1760235686851,0.66046595,110560.0,110550.0,0.04551947]
[1760235687049,0.65770595,110560.0,110550.0,0.04551947]
[1760235687267,0.65770595,110560.0,110550.0,0.26164308]
[1760235687479,0.01787869,110560.0,110550.0,0.29179498]
[1760235688169,0.0179232,110560.0,110550.0,0.29179498]
[1760235688373,0.0169232,110560.0,110550.0,0.29179498]
[1760235688594,0.64883824,110580.0,110560.0,0.0301519]
[1760235688798,0.45893001,110570.0,110560.0,0.2645881]
[1760235689027,0.47586096,110570.0,110560.0,0.2892581]
[1760235690512,0.47586096,110570.0,110560.0,0.2902581]
[1760235691341,0.01693095,110570.0,110560.0,0.2902581]
[1760235691632,0.51487208,110600.0,110590.0,0.21000007]
[1760235691844,0.05594207,110600.0,110590.0,0.25075007]
[1760235692034,0.05594207,110600.0,110590.0,0.28502007]
[1760235692035,0.01790207,110600.0,110590.0,0.28502007]
[1760235692897,0.01899274,110600.0,110590.0,0.28502007]
[1760235693310,0.00106325,110600.0,110590.0,0.28502007]
[1760235693726,0.00106325,110600.0,110590.0,0.28602007]
[1760235696059,0.63974695,110610.0,110600.0,0.18083182]
[1760235696060,0.45811156,110610.0,110600.0,0.18083182]
[1760235696303,0.45816173,110610.0,110600.0,0.22158182]
[1760235696530,0.45816173,110610.0,110600.0,0.25585182]
[1760235697057,5.017e-05,110610.0,110600.0,0.28600372]
[1760235697288,5.017e-05,110610.0,110600.0,0.28700372]
[1760235701600,0.00064201,110610.0,110600.0,0.28700372]
[1760235702246,0.00064201,110610.0,110600.0,0.28900372]
[1760235703699,0.00049735,110610.0,110600.0,0.28900372]
[1760235710494,0.00049735,110610.0,110600.0,0.28800372]
[1760235710937,0.00049735,110610.0,110600.0,0.28600372]
[1760235711149,0.00049735,110610.0,110600.0,0.28800372]
[1760235711559,0.00049735,110610.0,110600.0,0.28700372]
[1760235711764,0.00049735,110610.0,110600.0,0.28600372]
[1760235711974,0.00049735,110610.0,110600.0,0.28700372]
[1760235722440,0.00049735,110610.0,110600.0,0.55570372]
[1760235722858,0.76940066,110610.0,110600.0,0.1061719]
[1760235723067,0.76940066,110610.0,110600.0,0.25685182]
[1760235723068,0.78631477,110610.0,110600.0,0.25685182]
[1760235723280,0.19822693,110610.0,110600.0,0.25685182]
[1760235723492,0.19854693,110610.0,110600.0,0.04175]
[1760235723746,0.78631477,110610.0,110600.0,0.1054219]
[1760235723954,0.19822693,110610.0,110600.0,0.28625372]
[1760235724602,0.19822693,110610.0,110600.0,0.1054219]
[1760235725025,0.19822693,110610.0,110600.0,0.13582139]
[1760235726306,0.19822693,110610.0,110600.0,0.1054219]
[1760235726717,0.78631477,110610.0,110600.0,0.28625372]
[1760235727209,0.19822693,110610.0,110600.0,0.28625372]
[1760235727416,0.19825254,110610.0,110600.0,0.28625372]
[1760235727675,0.18131282,110610.0,110600.0,0.28625372]
[1760235731096,0.18131282,110610.0,110600.0,0.1054219]
[1760235731534,0.76940066,110610.0,110600.0,0.1054219]
[1760235731968,0.76972066,110610.0,110600.0,0.0301519]
[1760235732179,0.18083182,110600.0,110590.0,0.01773263]
[1760235732388,0.18083182,110600.0,110590.0,0.2331008]
[1760235732614,0.18083182,110600.0,110590.0,0.2855527]
[1760235733027,0.18083182,110600.0,110590.0,0.10470453]
[1760235733240,0.76923966,110600.0,110590.0,0.04788453]
[1760235733453,0.76923966,110600.0,110590.0,0.00097263]
[1760235733664,0.78637251,110600.0,110590.0,0.00097263]
[1760235734769,4.84259851,110600.0,110590.0,0.00097263]
[1760235734982,4.84259851,110600.0,110550.0,0.01762]
[1760235734983,0.18089725,110560.0,110550.0,0.01762]
[1760235735226,0.18091361,110550.0,110540.0,0.23306654]
[1760235735442,0.76898509,110560.0,110540.0,0.25536654]
[1760235735648,0.76898509,110560.0,110550.0,0.19853361]
[1760235735870,0.76930509,110560.0,110550.0,0.0700719]
[1760235736069,0.76930509,110560.0,110550.0,0.03992]
[1760235736279,0.76930509,110560.0,110550.0,0.04007063]
[1760235736744,0.76930509,110560.0,110550.0,0.07022253]
[1760235737167,0.76930509,110560.0,110550.0,0.03030253]
[1760235737386,0.76950509,110560.0,110550.0,0.00015063]
[1760235737598,0.76930509,110560.0,110550.0,0.00015063]
[1760235739214,0.18121725,110560.0,110550.0,0.00015063]
[1760235739434,0.76930509,110560.0,110550.0,0.04007063]
[1760235740520,0.19012492,110570.0,110550.0,0.28281809]
[1760235740521,0.18088547,110570.0,110550.0,0.28281809]
[1760235740734,0.18088547,110570.0,110560.0,0.01762]
[1760235740960,0.00028618,110590.0,110580.0,0.18086453]
[1760235741183,0.00028618,110590.0,110580.0,0.25530453]